[Event "10th Uppsala Young Champions 2023"]
[Site "Uppsala"]
[Date "2023.10.28"]
[Round "3.1"]
[White "Gavrilescu, David"]
[Black "Domalchuk-Jonasson, Aleksandr"]
[Result "1-0"]
[ECO "B53"]
[WhiteElo "2534"]
[BlackElo "2392"]
[Annotator "ChessBase"]
[PlyCount "71"]
[EventDate "2023.10.27"]
[EventType "swiss"]
[EventCountry "SWE"]
[SourceTitle "playchess.com"]
[Source "ChessBase"]
[SourceQuality "1"]
[TimeControl "5400+30"]

1. e4 {[%emt 0:00:15]} c5 {[%emt 0:00:08]} 2. Nf3 {[%emt 0:00:11]} d6 {[%emt 0:00:09]} 3. d4 {[%emt 0:00:16]} cxd4 {[%emt 0:00:06]} 4. Qxd4 {[%emt 0:00:09]} Nc6 {[%emt 0:00:44]} 5. Qe3 {[%emt 0:00:20]} g6 {[%emt 0:00:15]} 6. h3 {[%emt 0:00:09]} Bg7 {[%emt 0:00:48]} 7. Be2 {[%emt 0:00:11]} Nf6 {[%emt 0:00:10]} 8. O-O {[%emt 0:00:07]} O-O {[%emt 0:00:08]} 9. Rd1 {[%emt 0:00:08]} b6 {[%emt 0:02:27]} 10. c4 {[%emt 0:04:40]} Bb7 {[%emt 0:02:19]} 11. Nc3 {[%emt 0:00:22]} Nd7 {[%emt 0:01:28]} 12. b3 {[%emt 0:04:40]} Nb4 {[%emt 0:19:02]} 13. Rb1 {[%emt 0:01:52]} a6 {[%emt 0:02:02]} 14. Bb2 {[%emt 0:02:39]} Rc8 {[%emt 0:07:12]} 15. a3 {[%emt 0:07:02]} Nc6 {[%emt 0:00:27]} 16. Nd5 {[%emt 0:00:21]} Na5 {[%emt 0:11:31]} 17. h4 {[%emt 0:05:05]} Bc6 {[%emt 0:05:34]} 18. a4 {[%emt 0:06:13]} Nb7 {[%emt 0:09:17]} 19. Qg5 {[%emt 0:03:03]} Bxb2 {[%emt 0:07:30]} 20. Rxb2 {[%emt 0:01:29]} Re8 {[%emt 0:02:31]} 21. Qe3 {[%emt 0:10:42]} e6 {[%emt 0:05:48]} 22. Nb4 {[%emt 0:08:51]} a5 {[%emt 0:01:17]} 23. Nxc6 {[%emt 0:05:13]} Rxc6 {[%emt 0:00:03]} 24. e5 {[%emt 0:00:08]} Qb8 {[%emt 0:04:30]} 25. Qh6 {[%emt 0:14:20]} Nf8 {[%emt 0:06:15]} 26. h5 {[%emt 0:09:48]} dxe5 {[%emt 0:02:57]} 27. Qg5 {[%emt 0:01:52]} e4 {[%emt 0:04:10]} 28. Qf6 {[%emt 0:00:53]} h6 {[%emt 0:00:35]} 29. Ne5 {[%emt 0:01:32]} Rc7 {[%emt 0:01:53]} 30. Ng4 {[%emt 0:00:11]} Kh7 {[%emt 0:02:50]} 31. Qf4 {[%emt 0:00:08]} g5 {[%emt 0:00:56]} 32. Qf6 {[%emt 0:00:29]} Ng6 {[%emt 0:00:42]} 33. hxg6+ {[%emt 0:00:10]} fxg6 {[%emt 0:00:05]} 34. Qc3 {[%emt 0:00:27]} Rf8 {[%emt 0:00:55]} 35. Nf6+ {[%emt 0:00:06]} Kh8 {[%emt 0:00:11]} 36. Nd7+ {[%emt 0:00:08]} 1-0

[Event "10th Uppsala Young Champions 2023"]
[Site "Uppsala"]
[Date "2023.10.28"]
[Round "3.2"]
[White "Falkevall, Axel"]
[Black "Oksendal, Martin"]
[Result "1/2-1/2"]
[ECO "E52"]
[WhiteElo "2280"]
[BlackElo "2123"]
[Annotator "ChessBase"]
[PlyCount "83"]
[EventDate "2023.10.27"]
[EventType "swiss"]
[EventCountry "SWE"]
[SourceTitle "playchess.com"]
[Source "ChessBase"]
[SourceQuality "1"]
[TimeControl "5400+30"]

1. d4 {[%emt 0:00:05]} Nf6 {[%emt 0:00:41]} 2. c4 {[%emt 0:00:07]} e6 {[%emt 0:00:39]} 3. Nc3 {[%emt 0:00:08]} Bb4 {[%emt 0:00:10]} 4. e3 {[%emt 0:00:05]} O-O {[%emt 0:00:05]} 5. Bd2 {[%emt 0:00:03]} d5 {[%emt 0:00:06]} 6. Nf3 {[%emt 0:00:15]} b6 {[%emt 0:00:10]} 7. cxd5 {[%emt 0:00:19]} exd5 {[%emt 0:00:06]} 8. Bd3 {[%emt 0:00:12]} Bb7 {[%emt 0:00:07]} 9. O-O {[%emt 0:00:14]} Bd6 {[%emt 0:00:11]} 10. Rc1 {[%emt 0:02:01]} c5 {[%emt 0:00:35]} 11. Re1 {[%emt 0:06:25]} Re8 {[%emt 0:01:36]} 12. Qc2 {[%emt 0:04:33]} Nc6 {[%emt 0:09:07]} 13. a3 {[%emt 0:01:57]} c4 {[%emt 0:17:39]} 14. Bf1 {[%emt 0:01:00]} Na5 {[%emt 0:01:48]} 15. Nb5 {[%emt 0:04:06]} Nb3 {[%emt 0:01:07]} 16. Nxd6 {[%emt 0:01:50]} Qxd6 {[%emt 0:00:11]} 17. Rcd1 {[%emt 0:02:49]} a5 {[%emt 0:11:12]} 18. Bc1 {[%emt 0:04:35]} Rac8 {[%emt 0:04:37]} 19. Nd2 {[%emt 0:08:10]} Ng4 {[%emt 0:13:29]} 20. Nf3 {[%emt 0:03:23]} Nf6 {[%emt 0:00:13]} 21. g3 {[%emt 0:05:04]} Bc6 {[%emt 0:02:30]} 22. Bh3 {[%emt 0:04:06]} Rcd8 {[%emt 0:02:25]} 23. Qb1 {[%emt 0:06:57]} g6 {[%emt 0:09:09]} 24. Nd2 {[%emt 0:05:39]} Ba4 {[%emt 0:01:13]} 25. f3 {[%emt 0:05:03]} Nh5 {[%emt 0:04:08]} 26. Bg2 {[%emt 0:04:07]} Nxd2 {[%emt 0:03:09]} 27. Rxd2 {[%emt 0:00:09]} f5 {[%emt 0:00:34]} 28. Rf2 {[%emt 0:03:24]} f4 {[%emt 0:02:44]} 29. gxf4 {[%emt 0:02:03]} Nxf4 {[%emt 0:00:17]} 30. Bf1 {[%emt 0:00:38]} Bd7 {[%emt 0:01:41]} 31. Bd2 {[%emt 0:01:19]} Nh3+ {[%emt 0:00:15]} 32. Bxh3 {[%emt 0:00:07]} Bxh3 {[%emt 0:00:03]} 33. Bc3 {[%emt 0:04:56]} Qf6 {[%emt 0:01:25]} 34. Qc1 {[%emt 0:04:33]} Qg5+ {[%emt 0:02:30]} 35. Kh1 {[%emt 0:01:30]} Rd7 {[%emt 0:00:07]} 36. Bd2 {[%emt 0:03:57]} Qf6 {[%emt 0:00:44]} 37. Ree2 {[%emt 0:00:55]} Bf5 {[%emt 0:01:06]} 38. Qg1 {[%emt 0:02:16]} Bd3 {[%emt 0:00:16]} 39. Re1 {[%emt 0:00:05]} Rf7 {[%emt 0:00:22]} 40. Qg3 {[%emt 0:01:53]} Be4 {[%emt 0:00:59]} 41. Ref1 {[%emt 0:00:35]} Bd3 {[%emt 0:00:42]} 42. Rg1 {[%emt 0:00:40]} 1/2-1/2

[Event "10th Uppsala Young Champions 2023"]
[Site "Uppsala"]
[Date "2023.10.28"]
[Round "3.3"]
[White "Morell, Oscar"]
[Black "Omarsson, Adam"]
[Result "0-1"]
[ECO "B90"]
[WhiteElo "1942"]
[BlackElo "1946"]
[Annotator "NA"]
[PlyCount "78"]
[EventDate "2023.10.27"]
[EventType "swiss"]
[EventCountry "SWE"]
[SourceTitle "playchess.com"]
[Source "ChessBase"]
[SourceQuality "1"]
[TimeControl "5400+30"]

1. e4 {[%emt 0:00:02]} c5 {[%emt 0:00:06]} 2. Nf3 {[%emt 0:00:35]} d6 {[%emt 0:00:08]} 3. d4 {[%emt 0:00:10]} cxd4 {[%emt 0:00:08]} 4. Nxd4 {[%emt 0:00:04]} Nf6 {[%emt 0:00:09]} 5. Nc3 {[%emt 0:00:09]} a6 {[%emt 0:00:13]} 6. f3 {[%emt 0:00:18]} e5 {[%emt 0:02:54]} 7. Nb3 {[%emt 0:00:17]} Be7 {[%emt 0:01:07]} 8. Be3 {[%emt 0:00:12]} O-O {[%emt 0:01:42]} 9. Qd2 {[%emt 0:00:15]} Be6 {[%emt 0:00:39]} 10. O-O-O {[%emt 0:00:51]} Nbd7 {[%emt 0:02:01]} 11. g4 {[%emt 0:00:45]} b5 {[%emt 0:00:10]} 12. g5 {[%emt 0:00:07]} Nh5 {[%emt 0:00:04]} 13. Nd5 {[%emt 0:01:44]} Bxd5 {[%emt 0:04:41]} 14. exd5 {[%emt 0:00:12]} b4 {[%emt 0:11:28]} 15. Kb1 {[%emt 0:03:48]} a5 {[%emt 0:00:10]} 16. Rg1 {[%emt 0:10:10]} Qc7 {[%emt 0:03:26]} 17. Na1 {[%emt 0:16:40]} Rfb8 {[%emt 0:04:08]} 18. Rg4 {[%emt 0:25:59]} Nb6 {[%emt 0:03:36]} 19. Rc1 {[%emt 0:03:08]} Na4 {[%emt 0:00:12]} 20. Nb3 {[%emt 0:08:39]} Nc3+ {[%emt 0:02:30]} 21. bxc3 {[%emt 0:02:58]} bxc3 {[%emt 0:00:06]} 22. Qe1 {[%emt 0:22:01]} a4 {[%emt 0:00:06]} 23. Bc4 {[%emt 0:02:18]} axb3 {[%emt 0:00:07]} 24. cxb3 {[%emt 0:00:32]} f5 {[%emt 0:06:43]} 25. Rh4 {[%emt 0:00:07]} f4 {[%emt 0:00:25]} 26. Qxc3 {[%emt 0:00:19]} g6 {[%emt 0:00:16]} 27. Bf2 {[%emt 0:00:51]} Ng7 {[%emt 0:01:02]} 28. Rg4 {[%emt 0:00:06]} Qd7 {[%emt 0:01:30]} 29. h4 {[%emt 0:00:57]} Bd8 {[%emt 0:02:36]} 30. Rc2 {[%emt 0:00:34]} Ba5 {[%emt 0:01:39]} 31. Qd3 {[%emt 0:00:24]} Bb6 {[%emt 0:01:39]} 32. Bb5 {[%emt 0:00:44]} Qa7 {[%emt 0:00:19]} 33. Bxb6 {[%emt 0:00:24]} Qxb6 {[%emt 0:00:06]} 34. a4 {[%emt 0:00:20]} Nf5 {[%emt 0:00:44]} 35. h5 {[%emt 0:00:39]} Qe3 {[%emt 0:02:06]} 36. Rd2 {[%emt 0:00:37]} Rxb5 {[%emt 0:05:26]} 37. axb5 {[%emt 0:00:23]} Qe1+ {[%emt 0:00:05]} 38. Rd1 {[%emt 0:00:31]} Qa5 {[%emt 0:00:09]} 39. Qc4 {[%emt 0:00:39]} Qa1+ {[%emt 0:45:24]} 0-1

[Event "10th Uppsala Young Champions 2023"]
[Site "Uppsala"]
[Date "2023.10.28"]
[Round "3.4"]
[White "Harish, Neeraj"]
[Black "Seiger, Vidar"]
[Result "1/2-1/2"]
[ECO "B36"]
[WhiteElo "2076"]
[BlackElo "1908"]
[Annotator "NA"]
[PlyCount "92"]
[EventDate "2023.10.27"]
[EventType "swiss"]
[EventCountry "SWE"]
[SourceTitle "playchess.com"]
[Source "ChessBase"]
[SourceQuality "1"]
[TimeControl "5400+30"]

1. e4 {[%emt 0:00:02]} c5 {[%emt 0:01:03]} 2. Nf3 {[%emt 0:00:06]} g6 {[%emt 0:00:05]} 3. d4 {[%emt 0:00:08]} cxd4 {[%emt 0:00:05]} 4. Nxd4 {[%emt 0:00:05]} Nc6 {[%emt 0:00:07]} 5. c4 {[%emt 0:00:05]} Nf6 {[%emt 0:00:05]} 6. Nc3 {[%emt 0:00:05]} d6 {[%emt 0:00:05]} 7. Be2 {[%emt 0:01:17]} Nxd4 {[%emt 0:00:04]} 8. Qxd4 {[%emt 0:00:07]} Bg7 {[%emt 0:00:07]} 9. Be3 {[%emt 0:00:08]} O-O {[%emt 0:00:20]} 10. Qd2 {[%emt 0:00:03]} a5 {[%emt 0:00:07]} 11. Rc1 {[%emt 0:00:21]} a4 {[%emt 0:00:22]} 12. f3 {[%emt 0:00:19]} Qa5 {[%emt 0:00:18]} 13. Kf2 {[%emt 0:00:24]} Be6 {[%emt 0:02:37]} 14. Nd5 {[%emt 0:00:24]} Qd8 {[%emt 0:34:24]} 15. Rhd1 {[%emt 0:06:53]} Nd7 {[%emt 0:01:14]} 16. Kg1 {[%emt 0:04:36]} Nc5 {[%emt 0:07:43]} 17. Qc2 {[%emt 0:07:20]} Bxd5 {[%emt 0:00:55]} 18. Rxd5 {[%emt 0:00:52]} Qb6 {[%emt 0:09:13]} 19. Rb1 {[%emt 0:07:00]} Rfc8 {[%emt 0:01:57]} 20. Bf1 {[%emt 0:13:11]} e6 {[%emt 0:10:17]} 21. Rd2 {[%emt 0:01:39]} Qc6 {[%emt 0:01:29]} 22. Rbd1 {[%emt 0:05:02]} Rd8 {[%emt 0:00:35]} 23. Bf4 {[%emt 0:01:11]} e5 {[%emt 0:02:12]} 24. Be3 {[%emt 0:05:31]} Ne6 {[%emt 0:00:33]} 25. Rd5 {[%emt 0:06:29]} Nc7 {[%emt 0:03:35]} 26. Qf2 {[%emt 0:10:17]} Nxd5 {[%emt 0:01:39]} 27. Rxd5 {[%emt 0:00:06]} f5 {[%emt 0:04:49]} 28. exf5 {[%emt 0:04:16]} gxf5 {[%emt 0:00:28]} 29. Qh4 {[%emt 0:00:31]} Rf8 {[%emt 0:08:34]} 30. c5 {[%emt 0:02:01]} dxc5 {[%emt 0:01:38]} 31. Bc4 {[%emt 0:00:13]} Kh8 {[%emt 0:00:19]} 32. Rxc5 {[%emt 0:13:30]} Qg6 {[%emt 0:01:21]} 33. Rb5 {[%emt 0:02:12]} Rac8 {[%emt 0:03:21]} 34. Bc5 {[%emt 0:04:53]} Rfd8 {[%emt 0:01:26]} 35. Rb6 {[%emt 0:02:52]} Rd1+ {[%emt 0:01:52]} 36. Bf1 {[%emt 0:00:05]} Qf7 {[%emt 0:01:43]} 37. Qb4 {[%emt 0:00:43]} Qd5 {[%emt 0:00:43]} 38. Rd6 {[%emt 0:00:22]} Qxc5+ {[%emt 0:01:15]} 39. Qxc5 {[%emt 0:00:09]} Rxf1+ {[%emt 0:00:06]} 40. Kxf1 {[%emt 0:00:04]} Rxc5 {[%emt 0:00:09]} 41. Rd8+ {[%emt 0:00:05]} Bf8 {[%emt 0:00:01]} 42. Rxf8+ {[%emt 0:00:09]} Kg7 {[%emt 0:00:03]} 43. Rxf5 {[%emt 0:02:00]} Rc1+ {[%emt 0:00:28]} 44. Kf2 {[%emt 0:00:04]} Rc2+ {[%emt 0:00:11]} 45. Kg3 {[%emt 0:00:14]} Rxb2 {[%emt 0:00:38]} 46. Rxe5 {[%emt 0:00:09]} Kf6 {[%emt 0:02:35]} 1/2-1/2

[Event "10th Uppsala Young Champions 2023"]
[Site "Uppsala"]
[Date "2023.10.28"]
[Round "3.5"]
[White "Sorensen, Hampus"]
[Black "Briem, Stephan"]
[Result "1-0"]
[ECO "E11"]
[WhiteElo "2470"]
[BlackElo "2144"]
[Annotator "ChessBase"]
[PlyCount "79"]
[EventDate "2023.10.27"]
[EventType "swiss"]
[EventCountry "SWE"]
[SourceTitle "playchess.com"]
[Source "ChessBase"]
[SourceQuality "1"]
[TimeControl "5400+30"]

1. d4 {[%emt 0:00:25]} Nf6 {[%emt 0:00:18]} 2. c4 {[%emt 0:00:07]} e6 {[%emt 0:00:09]} 3. Nf3 {[%emt 0:00:25]} Bb4+ {[%emt 0:00:48]} 4. Bd2 {[%emt 0:00:24]} Qe7 {[%emt 0:01:01]} 5. g3 {[%emt 0:01:26]} Nc6 {[%emt 0:00:56]} 6. Nc3 {[%emt 0:01:04]} Bxc3 {[%emt 0:01:33]} 7. Bxc3 {[%emt 0:00:15]} Ne4 {[%emt 0:00:18]} 8. Rc1 {[%emt 0:00:19]} d6 {[%emt 0:14:53]} 9. d5 {[%emt 0:02:15]} Nxc3 {[%emt 0:00:12]} 10. Rxc3 {[%emt 0:00:07]} Nb8 {[%emt 0:00:24]} 11. dxe6 {[%emt 0:01:47]} fxe6 {[%emt 0:00:55]} 12. Bg2 {[%emt 0:01:26]} O-O {[%emt 0:00:28]} 13. O-O {[%emt 0:00:21]} Nd7 {[%emt 0:06:04]} 14. b4 {[%emt 0:03:50]} Nf6 {[%emt 0:12:46]} 15. c5 {[%emt 0:08:21]} e5 {[%emt 0:07:30]} 16. cxd6 {[%emt 0:01:29]} cxd6 {[%emt 0:00:36]} 17. Qc2 {[%emt 0:10:17]} d5 {[%emt 0:25:51]} 18. Rc7 {[%emt 0:07:13]} Qd6 {[%emt 0:01:56]} 19. Qc5 {[%emt 0:03:57]} Qxc5 {[%emt 0:01:04]} 20. Rxc5 {[%emt 0:00:06]} e4 {[%emt 0:09:14]} 21. Nd4 {[%emt 0:00:41]} Bd7 {[%emt 0:03:19]} 22. Rc7 {[%emt 0:06:26]} b6 {[%emt 0:02:12]} 23. f3 {[%emt 0:27:15]} Rfc8 {[%emt 0:02:27]} 24. Rfc1 {[%emt 0:01:16]} exf3 {[%emt 0:05:09]} 25. exf3 {[%emt 0:01:52]} Kf8 {[%emt 0:00:35]} 26. Bf1 {[%emt 0:04:54]} Ne8 {[%emt 0:01:42]} 27. Rxc8 {[%emt 0:04:36]} Rxc8 {[%emt 0:00:04]} 28. Rxc8 {[%emt 0:00:14]} Bxc8 {[%emt 0:00:02]} 29. Nb5 {[%emt 0:00:27]} a6 {[%emt 0:00:37]} 30. Nc3 {[%emt 0:00:03]} Nc7 {[%emt 0:00:27]} 31. Na4 {[%emt 0:01:17]} b5 {[%emt 0:01:02]} 32. Nc5 {[%emt 0:00:59]} Ke7 {[%emt 0:00:25]} 33. Kf2 {[%emt 0:00:51]} Kd6 {[%emt 0:01:09]} 34. Ke3 {[%emt 0:00:13]} Na8 {[%emt 0:00:51]} 35. a4 {[%emt 0:02:18]} Nc7 {[%emt 0:00:16]} 36. a5 {[%emt 0:01:30]} Bf5 {[%emt 0:00:37]} 37. Kd4 {[%emt 0:00:43]} Bb1 {[%emt 0:00:20]} 38. Bh3 {[%emt 0:00:19]} Ne8 {[%emt 0:00:45]} 39. Nxa6 {[%emt 0:00:35]} Ba2 {[%emt 0:00:28]} 40. Nc5 {[%emt 0:00:22]} 1-0

[Event "10th Uppsala Young Champions 2023"]
[Site "Uppsala"]
[Date "2023.10.28"]
[Round "3.6"]
[White "Grahn, Vidar"]
[Black "Ljung, Harald"]
[Result "1-0"]
[ECO "E08"]
[WhiteElo "2133"]
[BlackElo "2159"]
[Annotator "ChessBase"]
[PlyCount "67"]
[EventDate "2023.10.27"]
[EventType "swiss"]
[EventCountry "SWE"]
[SourceTitle "playchess.com"]
[Source "ChessBase"]
[SourceQuality "1"]
[TimeControl "5400+30"]

1. d4 {[%emt 0:00:02]} Nf6 {[%emt 0:00:15]} 2. c4 {[%emt 0:00:04]} e6 {[%emt 0:00:12]} 3. g3 {[%emt 0:00:04]} d5 {[%emt 0:00:08]} 4. Bg2 {[%emt 0:00:06]} Be7 {[%emt 0:00:06]} 5. Nf3 {[%emt 0:00:04]} O-O {[%emt 0:00:08]} 6. O-O {[%emt 1:33:10]} c6 {[%emt 0:00:07]} 7. Nc3 {[%emt 0:00:00]} Nbd7 {[%emt 0:00:05]} 8. Qd3 {[%emt 0:00:00]} b6 {[%emt 0:00:15]} 9. e4 {[%emt 0:00:00]} dxe4 {[%emt 0:03:23]} 10. Nxe4 {[%emt 0:00:00]} Nxe4 {[%emt 0:00:34]} 11. Qxe4 {[%emt 0:00:00]} Bb7 {[%emt 0:00:08]} 12. Rd1 {[%emt 0:00:00]} Nf6 {[%emt 0:00:09]} 13. Qe2 {[%emt 0:00:00]} Rc8 {[%emt 0:08:06]} 14. Ne5 {[%emt 0:00:00]} Rc7 {[%emt 0:02:48]} 15. Bf4 {[%emt 0:00:00]} Qc8 {[%emt 0:00:33]} 16. c5 {[%emt 0:00:00]} Nd5 {[%emt 0:03:24]} 17. Bxd5 {[%emt 0:00:00]} cxd5 {[%emt 0:02:09]} 18. b4 {[%emt 0:00:00]} bxc5 {[%emt 0:05:24]} 19. bxc5 {[%emt 0:00:00]} f6 {[%emt 0:00:42]} 20. Nd3 {[%emt 0:00:00]} e5 {[%emt 0:05:08]} 21. dxe5 {[%emt 0:00:00]} fxe5 {[%emt 0:00:14]} 22. Bxe5 {[%emt 0:00:00]} Rc6 {[%emt 0:00:48]} 23. Bd4 {[%emt 0:00:00]} Re6 {[%emt 0:01:14]} 24. Qb2 {[%emt 0:00:00]} Bf6 {[%emt 0:06:18]} 25. Re1 {[%emt 0:00:00]} Re4 {[%emt 0:02:37]} 26. Bxf6 {[%emt 0:00:00]} Rxf6 {[%emt 0:00:50]} 27. Rab1 {[%emt 0:00:00]} Rxe1+ {[%emt 0:04:05]} 28. Rxe1 {[%emt 0:00:00]} d4 {[%emt 0:12:09]} 29. Re7 {[%emt 0:00:00]} Ba8 {[%emt 0:01:25]} 30. Qb3+ {[%emt 0:00:00]} Kf8 {[%emt 0:02:06]} 31. Rxa7 {[%emt 0:00:00]} Rf5 {[%emt 0:02:30]} 32. Ne5 {[%emt 0:00:00]} Bc6 {[%emt 0:02:11]} 33. Rf7+ {[%emt 0:00:00]} Rxf7 {[%emt 0:00:07]} 34. Qxf7# {[%emt 0:00:00]} 1-0

[Event "10th Uppsala Young Champions 2023"]
[Site "Uppsala"]
[Date "2023.10.28"]
[Round "3.7"]
[White "Morell, Ludvig"]
[Black "Tripathi, Pratyush"]
[Result "0-1"]
[ECO "D12"]
[WhiteElo "2017"]
[BlackElo "1801"]
[Annotator "NA"]
[PlyCount "38"]
[EventDate "2023.10.27"]
[EventType "swiss"]
[EventCountry "SWE"]
[SourceTitle "playchess.com"]
[Source "ChessBase"]
[SourceQuality "1"]
[TimeControl "5400+30"]

1. e3 {[%emt 0:00:07]} d5 {[%emt 0:00:41]} 2. c4 {[%emt 1:31:23]} c6 {[%emt 0:00:10]} 3. Nf3 {[%emt 0:00:00]} Nf6 {[%emt 0:00:05]} 4. d4 {[%emt 0:00:00]} Bf5 {[%emt 0:00:06]} 5. Nc3 {[%emt 0:00:00]} e6 {[%emt 0:00:05]} 6. Nh4 {[%emt 0:00:00]} Bg4 {[%emt 0:00:19]} 7. Qb3 {[%emt 0:00:00]} Qb6 {[%emt 0:02:07]} 8. c5 {[%emt 0:00:00]} Qc7 {[%emt 0:00:04]} 9. f3 {[%emt 0:00:00]} Bh5 {[%emt 0:03:56]} 10. e4 {[%emt 0:00:00]} dxe4 {[%emt 0:00:19]} 11. Nxe4 {[%emt 0:00:00]} Be7 {[%emt 0:02:35]} 12. Nd6+ {[%emt 0:00:00]} Bxd6 {[%emt 0:02:08]} 13. cxd6 {[%emt 0:00:00]} Qb6 {[%emt 0:03:51]} 14. Bc4 {[%emt 0:00:00]} Nbd7 {[%emt 0:02:20]} 15. O-O {[%emt 0:00:00]} Qxd4+ {[%emt 0:14:02]} 16. Be3 {[%emt 0:00:00]} Qxh4 {[%emt 0:00:07]} 17. Qxb7 {[%emt 0:00:00]} O-O {[%emt 0:00:20]} 18. Qxc6 {[%emt 0:00:00]} Rfc8 {[%emt 0:00:45]} 19. Qb7 {[%emt 0:00:00]} Rab8 {[%emt 0:00:07]} 0-1

[Event "10th Uppsala Young Champions 2023"]
[Site "Uppsala"]
[Date "2023.10.28"]
[Round "3.8"]
[White "Valcu, Lavinia"]
[Black "Steiners, Emils"]
[Result "0-1"]
[ECO "D00"]
[WhiteElo "1990"]
[BlackElo "1914"]
[Annotator "NA"]
[PlyCount "78"]
[EventDate "2023.10.27"]
[EventType "swiss"]
[EventCountry "SWE"]
[SourceTitle "playchess.com"]
[Source "ChessBase"]
[SourceQuality "1"]
[TimeControl "5400+30"]

1. d4 {[%emt 0:00:11]} d5 {[%emt 0:00:04]} 2. Bf4 {[%emt 0:00:24]} Nf6 {[%emt 0:00:06]} 3. e3 {[%emt 0:00:08]} c5 {[%emt 0:00:05]} 4. dxc5 {[%emt 0:00:04]} Nc6 {[%emt 0:03:13]} 5. Bb5 {[%emt 0:01:43]} e6 {[%emt 0:05:22]} 6. b4 {[%emt 0:00:17]} a5 {[%emt 0:05:56]} 7. Bxc6+ {[%emt 0:05:12]} bxc6 {[%emt 0:00:04]} 8. c3 {[%emt 0:00:08]} Be7 {[%emt 0:12:29]} 9. Nf3 {[%emt 0:05:18]} Nd7 {[%emt 0:07:47]} 10. a4 {[%emt 0:03:30]} Bf6 {[%emt 0:07:17]} 11. Ra3 {[%emt 0:05:17]} e5 {[%emt 0:06:38]} 12. Bg3 {[%emt 0:00:10]} Rb8 {[%emt 0:04:14]} 13. Rb3 {[%emt 0:06:57]} Ba6 {[%emt 0:03:44]} 14. Nbd2 {[%emt 0:01:38]} O-O {[%emt 0:01:45]} 15. Qb1 {[%emt 0:03:28]} Qc8 {[%emt 0:10:45]} 16. Kd1 {[%emt 0:07:31]} Bc4 {[%emt 0:07:45]} 17. Nxc4 {[%emt 0:02:10]} dxc4 {[%emt 0:00:05]} 18. Rb2 {[%emt 0:00:13]} axb4 {[%emt 0:01:50]} 19. Rxb4 {[%emt 0:05:37]} Nxc5 {[%emt 0:04:03]} 20. Bxe5 {[%emt 0:13:00]} Rxb4 {[%emt 0:09:04]} 21. cxb4 {[%emt 0:00:35]} Rd8+ {[%emt 0:03:01]} 22. Ke2 {[%emt 0:02:09]} Nxa4 {[%emt 0:00:45]} 23. Bxf6 {[%emt 0:05:38]} gxf6 {[%emt 0:01:10]} 24. Qc2 {[%emt 0:00:15]} Nb6 {[%emt 0:03:15]} 25. Ra1 {[%emt 0:00:57]} c5 {[%emt 0:01:43]} 26. bxc5 {[%emt 0:01:38]} Qxc5 {[%emt 0:00:03]} 27. Kf1 {[%emt 0:00:45]} Nd5 {[%emt 0:01:11]} 28. Kg1 {[%emt 0:03:28]} c3 {[%emt 0:00:30]} 29. Nd4 {[%emt 0:03:16]} Nb4 {[%emt 0:00:31]} 30. Qe4 {[%emt 0:01:13]} c2 {[%emt 0:00:31]} 31. Rc1 {[%emt 0:02:05]} Qc3 {[%emt 0:00:29]} 32. Qg4+ {[%emt 0:01:48]} Kh8 {[%emt 0:00:31]} 33. Nf5 {[%emt 0:04:29]} Rg8 {[%emt 0:00:18]} 34. Qd4 {[%emt 0:00:06]} Rc8 {[%emt 0:00:40]} 35. Kf1 {[%emt 0:02:18]} Qd3+ {[%emt 0:00:34]} 36. Kg1 {[%emt 0:00:29]} Qxf5 {[%emt 0:00:27]} 37. Qxb4 {[%emt 0:14:55]} Qd3 {[%emt 0:00:28]} 38. Qd4 {[%emt 0:00:00]} Qxd4 {[%emt 0:00:29]} 39. exd4 {[%emt 0:00:00]} Rb8 {[%emt 0:00:16]} 0-1

[Event "10th Uppsala Young Champions 2023"]
[Site "Uppsala"]
[Date "2023.10.28"]
[Round "3.9"]
[White "Muntean, Victor"]
[Black "Stefansson, Vignir Vatnar"]
[Result "0-1"]
[ECO "B01"]
[WhiteElo "2092"]
[BlackElo "2484"]
[Annotator "ChessBase"]
[PlyCount "28"]
[EventDate "2023.10.27"]
[EventType "swiss"]
[EventCountry "SWE"]
[SourceTitle "playchess.com"]
[Source "ChessBase"]
[SourceQuality "1"]
[TimeControl "5400+30"]

1. e4 {[%emt 0:00:02]} Nc6 {[%emt 0:01:37]} 2. d4 {[%emt 0:02:59]} d5 {[%emt 0:00:13]} 3. exd5 {[%emt 0:03:19]} Qxd5 {[%emt 0:00:14]} 4. Be3 {[%emt 0:00:12]} e5 {[%emt 0:00:22]} 5. Nc3 {[%emt 0:06:29]} Bb4 {[%emt 0:00:24]} 6. Qd2 {[%emt 0:00:54]} Qa5 {[%emt 0:02:31]} 7. d5 {[%emt 0:06:36]} Nce7 {[%emt 0:00:20]} 8. Bc4 {[%emt 0:06:19]} Nf6 {[%emt 0:00:35]} 9. f3 {[%emt 0:12:50]} Nfxd5 {[%emt 0:01:20]} 10. Nge2 {[%emt 0:00:23]} Be6 {[%emt 0:01:14]} 11. Bxd5 {[%emt 0:04:28]} Nxd5 {[%emt 0:00:26]} 12. Qd3 {[%emt 0:01:07]} O-O-O {[%emt 0:01:20]} 13. Qe4 {[%emt 0:00:16]} Nxc3 {[%emt 0:01:21]} 14. Nxc3 {[%emt 0:00:16]} f5 {[%emt 0:00:18]} 0-1